bitfinex/quotes_BTCUSD_20250215
["timestamp","ask_amount","ask_price","bid_price","bid_amount"]
[1739590348901,0.00122387,97791.0,97790.0,0.4251]
[1739590349109,0.00122387,97791.0,97790.0,0.3477]
[1739590349316,0.00610483,97791.0,97790.0,0.3477]
[1739590349565,0.00122387,97791.0,97790.0,0.3477]
[1739590349774,0.00610483,97791.0,97790.0,0.3247]
[1739590351703,0.02091677,97791.0,97790.0,0.3247]
[1739590351914,0.01991677,97791.0,97790.0,0.3247]
[1739590352430,0.02291677,97791.0,97790.0,0.3247]
[1739590352630,0.02091677,97791.0,97790.0,0.3247]
[1739590352742,0.01991677,97791.0,97790.0,0.3247]
[1739590352954,0.02191677,97791.0,97789.0,0.02720805]
[1739590353153,0.153389,97790.0,97789.0,0.02720805]
[1739590353635,0.15826994,97790.0,97789.0,0.02720805]
[1739590354764,0.15826994,97790.0,97789.0,0.00054138]
[1739590355343,0.17508188,97790.0,97789.0,0.00054138]
[1739590355512,0.17308188,97790.0,97789.0,0.00054138]
[1739590355745,0.17508188,97790.0,97789.0,0.00054138]
[1739590355918,0.17708188,97790.0,97789.0,0.00054138]
[1739590356668,0.17508188,97790.0,97789.0,0.00054138]
[1739590358067,0.17608188,97790.0,97789.0,0.00054138]
[1739590358266,0.17908188,97790.0,97789.0,0.00054138]
[1739590366933,0.28158553,97790.0,97789.0,0.00054138]
[1739590373226,0.43158553,97790.0,97789.0,0.00054138]
[1739590374423,0.52334933,97790.0,97789.0,0.00054138]
[1739590376826,0.43158553,97790.0,97789.0,0.00054138]
[1739590377061,0.44158553,97790.0,97789.0,0.00054138]
[1739590377233,0.60021793,97790.0,97789.0,0.00054138]
[1739590377634,0.59721793,97790.0,97789.0,0.00054138]
[1739590378162,0.60021793,97790.0,97789.0,0.00054138]
[1739590378298,0.59421793,97790.0,97789.0,0.00054138]
[1739590378500,0.153424,97768.0,97767.0,0.0001065]
[1739590378921,0.15820137,97768.0,97767.0,0.0001065]
[1739590379456,0.15559063,97768.0,97767.0,0.0001065]
[1739590379845,0.15859063,97768.0,97767.0,0.0001065]
[1739590380397,0.38789428,97768.0,97767.0,0.0001065]
[1739590380603,0.54089428,97768.0,97767.0,0.0001065]
[1739590380804,0.55095408,97768.0,97767.0,0.0001065]
[1739590381324,0.54795408,97768.0,97767.0,0.0001065]
[1739590381522,0.54495408,97768.0,97767.0,0.0001065]
[1739590381704,0.55195408,97768.0,97767.0,0.0001065]
[1739590381908,0.54889428,97768.0,97767.0,0.0001065]
[1739590383682,0.56918882,97768.0,97767.0,0.0001065]
[1739590384045,0.44238882,97768.0,97767.0,0.0001065]
[1739590386036,0.43538882,97768.0,97767.0,0.0001065]
[1739590386500,0.44238882,97768.0,97767.0,0.0001065]
[1739590387421,0.43538882,97768.0,97767.0,0.0001065]
[1739590387666,0.44238882,97768.0,97767.0,0.0001065]
[1739590388105,0.43538882,97768.0,97767.0,0.0001065]
[1739590388540,0.44238882,97768.0,97767.0,0.0001065]
[1739590391012,0.44261269,97768.0,97767.0,0.0001065]
[1739590395070,0.45740403,97768.0,97767.0,0.0001065]
[1739590400369,0.45040403,97768.0,97767.0,0.0001065]
[1739590400795,0.45740403,97768.0,97767.0,0.0001065]
[1739590401755,0.44261269,97768.0,97767.0,0.0001065]
[1739590402139,0.43561269,97768.0,97767.0,0.0001065]
[1739590402647,0.44261269,97768.0,97767.0,0.0001065]
[1739590403742,0.43561269,97768.0,97767.0,0.0001065]
[1739590403931,0.44261269,97768.0,97767.0,0.0001065]
[1739590404105,0.43561269,97768.0,97767.0,0.0001065]
[1739590404500,0.44261269,97768.0,97767.0,0.0001065]
[1739590411426,0.47451612,97768.0,97767.0,0.0001065]
[1739590415119,0.56614547,97768.0,97767.0,0.0001065]
[1739590416911,0.53424204,97768.0,97767.0,0.0001065]
[1739590417108,0.56615904,97768.0,97767.0,0.0001065]
[1739590418132,0.47452969,97768.0,97767.0,0.0001065]
[1739590420915,0.44261269,97768.0,97767.0,0.0001065]
[1739590422251,0.47452835,97768.0,97767.0,0.0001065]
[1739590422769,0.44261269,97768.0,97767.0,0.0001065]
[1739590426195,0.47452495,97768.0,97767.0,0.0001065]
[1739590427619,0.44261269,97768.0,97767.0,0.0001065]
[1739590428571,0.47452655,97768.0,97767.0,0.0001065]
[1739590428770,0.44261269,97768.0,97767.0,0.0001065]
[1739590428905,0.47452609,97768.0,97767.0,0.0001065]
[1739590436699,0.46752609,97768.0,97767.0,0.0001065]
[1739590437889,0.47452609,97768.0,97767.0,0.0001065]
[1739590446399,0.47452609,97768.0,97767.0,0.0001065]
[1739590448602,0.46752609,97768.0,97767.0,0.0001065]
[1739590449358,0.46052609,97768.0,97767.0,0.0001065]
[1739590449888,0.46752609,97768.0,97767.0,0.0001065]
[1739590450092,0.47452609,97768.0,97767.0,0.0001065]
[1739590450296,0.46752609,97768.0,97767.0,0.0001065]
[1739590450515,0.46052609,97768.0,97767.0,0.0001065]
[1739590450737,0.47452609,97768.0,97767.0,0.0001065]
[1739590451545,0.48152609,97768.0,97767.0,0.0001065]
[1739590452530,0.46752609,97768.0,97767.0,0.0001065]
[1739590452897,0.47452609,97768.0,97767.0,0.0001065]
[1739590491507,0.15,97767.0,97749.0,0.0668195]
[1739590491702,0.153452,97750.0,97749.0,0.0668195]
[1739590492125,0.15800998,97750.0,97749.0,0.0668195]
[1739590492988,0.15900998,97750.0,97749.0,0.06691304]
[1739590495251,0.15900998,97750.0,97749.0,0.06701954]
[1739590497261,0.15900998,97750.0,97749.0,0.0657931]
[1739590501391,0.15900998,97750.0,97749.0,0.00020004]
[1739590502202,0.15800998,97750.0,97749.0,0.00020004]
[1739590502658,0.16100998,97750.0,97749.0,0.00020004]
[1739590506274,0.16123364,97750.0,97749.0,0.00020004]
[1739590521641,0.17606196,97750.0,97749.0,0.00020004]
[1739590524634,0.27856561,97750.0,97749.0,0.00020004]
[1739590524834,0.153471,97738.0,97737.0,0.0001065]
[1739590525098,0.52331818,97738.0,97737.0,0.00020008]
[1739590526327,0.53031818,97738.0,97737.0,0.00020008]
[1739590526554,0.49841536,97738.0,97737.0,0.00020008]
[1739590526759,0.51324368,97738.0,97737.0,0.00020008]
[1739590527788,0.52024368,97738.0,97737.0,0.00020008]
[1739590530614,0.43934368,97738.0,97737.0,0.00020008]
[1739590531542,0.52024368,97738.0,97737.0,0.00020008]
[1739590532693,0.51324368,97738.0,97737.0,0.00020008]
[1739590533082,0.50624368,97738.0,97737.0,0.00020008]
[1739590533285,0.42534368,97738.0,97737.0,0.00020008]
[1739590534179,0.43934368,97738.0,97737.0,0.00020008]
[1739590534615,0.43234368,97738.0,97737.0,0.00020008]
[1739590535045,0.43934368,97738.0,97737.0,0.00020008]
[1739590537171,0.43480297,97738.0,97737.0,0.00020008]
[1739590541210,0.42780297,97738.0,97737.0,0.00020008]
[1739590541631,0.43480297,97738.0,97737.0,0.00020008]
[1739590542236,0.42780297,97738.0,97737.0,0.00020008]
[1739590542660,0.43480297,97738.0,97737.0,0.00020008]
[1739590544923,0.41997465,97738.0,97737.0,0.00020008]
[1739590558663,0.49757465,97738.0,97737.0,0.00020008]
[1739590559451,0.5224812,97738.0,97737.0,0.00020008]
[1739590559631,0.5154812,97738.0,97737.0,0.00020008]
[1739590559832,0.5224812,97738.0,97737.0,0.00020008]
[1739590560064,0.5294812,97738.0,97737.0,0.00020008]
[1739590560493,0.5224812,97738.0,97737.0,0.00020008]
[1739590560684,0.5294812,97738.0,97737.0,0.00020008]
[1739590560885,0.15351,97713.0,97712.0,5.8e-07]
[1739590561100,0.5155202,97713.0,97712.0,6.271e-05]
[1739590562167,0.53034352,97713.0,97712.0,6.271e-05]
[1739590562601,0.53734352,97713.0,97712.0,6.271e-05]
[1739590562801,0.53034352,97713.0,97712.0,6.271e-05]
[1739590563086,0.53734352,97713.0,97712.0,6.271e-05]
[1739590563357,0.52601092,97713.0,97712.0,6.271e-05]
[1739590563721,0.4405876,97713.0,97712.0,6.271e-05]
[1739590564330,0.4335876,97713.0,97712.0,6.271e-05]
[1739590564483,0.4405876,97713.0,97712.0,6.271e-05]
[1739590564702,0.4475876,97713.0,97712.0,6.271e-05]
[1739590564927,0.4335876,97713.0,97712.0,6.271e-05]
[1739590565783,0.4405876,97713.0,97712.0,6.271e-05]
[1739590566057,0.4335876,97713.0,97712.0,0.00016921]
[1739590566233,0.4405876,97713.0,97712.0,0.00016921]
[1739590566427,0.44081126,97713.0,97712.0,0.00016921]
[1739590575837,0.353212,97712.0,97711.0,2.1e-07]
[1739590576058,0.353212,97712.0,97711.0,5.7e-07]
[1739590576059,0.56318496,97712.0,97711.0,5.7e-07]
[1739590577090,0.57018496,97712.0,97711.0,5.7e-07]
[1739590577557,0.56318496,97712.0,97711.0,5.7e-07]
[1739590578005,0.57018496,97712.0,97711.0,5.7e-07]
[1739590578967,0.57718496,97712.0,97711.0,5.7e-07]
[1739590580717,0.54541565,97712.0,97711.0,5.7e-07]
[1739590581718,0.49571565,97712.0,97711.0,5.7e-07]
[1739590581929,0.42001565,97712.0,97711.0,5.7e-07]
[1739590582845,0.40601565,97712.0,97711.0,5.7e-07]
[1739590582983,0.41301565,97712.0,97711.0,5.7e-07]
[1739590583636,0.40601565,97712.0,97711.0,5.7e-07]
[1739590583809,0.41301565,97712.0,97711.0,5.7e-07]
[1739590584197,0.42001565,97712.0,97711.0,5.7e-07]
[1739590590061,0.42001565,97712.0,97711.0,0.00010707]
[1739590590292,0.42023931,97712.0,97711.0,0.00010707]
[1739590591051,0.56193931,97712.0,97711.0,7e-08]
[1739590591223,0.59371384,97712.0,97711.0,7e-08]
[1739590593812,0.91691384,97712.0,97711.0,7e-08]
[1739590601404,0.90991384,97712.0,97711.0,7e-08]
[1739590601731,0.90291384,97712.0,97711.0,7e-08]
[1739590601880,0.90991384,97712.0,97711.0,7e-08]
[1739590602574,0.303543,97692.0,97691.0,0.00541307]
[1739590602908,0.40604665,97692.0,97691.0,0.00554261]
[1739590604585,0.41304665,97692.0,97691.0,0.00554261]
[1739590605010,0.42004665,97692.0,97691.0,0.00554261]
[1739590612226,0.44081157,97692.0,97691.0,0.00554261]
[1739590613784,0.44081157,97692.0,97691.0,0.00564911]
[1739590614316,0.44103523,97692.0,97691.0,0.00564911]
[1739590619122,0.47287133,97692.0,97691.0,0.00564911]
[1739590620181,0.44103523,97692.0,97691.0,0.00564911]
[1739590621370,0.47288152,97692.0,97691.0,0.00564911]
[1739590636088,0.44103523,97692.0,97691.0,0.00564911]
[1739590652493,0.44103523,97692.0,97691.0,0.00023604]
[1739590653596,0.43403523,97692.0,97691.0,0.00023604]
[1739590654018,0.42703523,97692.0,97691.0,0.00023604]
[1739590654371,0.43403523,97692.0,97691.0,0.00023604]
[1739590654554,0.53278082,97692.0,97691.0,0.00023604]
[1739590656415,0.52578082,97692.0,97691.0,0.00023604]
[1739590656828,0.53278082,97692.0,97691.0,0.00023604]
[1739590658449,0.33853158,97692.0,97691.0,0.08053604]
[1739590660269,0.33853158,97692.0,97691.0,0.00023604]
[1739590675949,0.33153158,97692.0,97691.0,0.00023604]
[1739590676387,0.33853158,97692.0,97691.0,0.00023604]
[1739590677018,0.33153158,97692.0,97691.0,0.00023604]
[1739590677460,0.33853158,97692.0,97691.0,0.00023604]
[1739590678601,0.43027717,97692.0,97691.0,0.00023604]
[1739590681263,0.33853158,97692.0,97691.0,0.00023604]
[1739590684637,0.43027717,97692.0,97691.0,0.00023604]
[1739590688128,0.33853158,97692.0,97691.0,0.00023604]
[1739590688778,0.35334473,97692.0,97691.0,0.00023604]
[1739590693052,0.33257981,97692.0,97691.0,0.00023604]
[1739590694689,0.02903681,97692.0,97691.0,0.00023604]
[1739590694890,0.02903681,97692.0,97691.0,0.07523604]
[1739590695416,0.02203681,97692.0,97691.0,0.07523604]
[1739590695781,0.02903681,97692.0,97691.0,0.22878104]
[1739590695985,0.02903681,97692.0,97691.0,0.27808104]
[1739590696188,0.02203681,97692.0,97691.0,0.27808104]
[1739590697165,0.01503681,97692.0,97691.0,0.27808104]
[1739590697744,0.02003681,97692.0,97691.0,0.27808104]
[1739590698174,0.01703681,97692.0,97691.0,0.27808104]
[1739590701930,0.00222366,97692.0,97691.0,0.27808104]
[1739590704366,0.00222366,97692.0,97691.0,0.12453604]
[1739590704762,0.00222366,97692.0,97691.0,0.00023604]
[1739590704960,0.00222366,97692.0,97691.0,0.15378104]
[1739590705954,0.00222366,97692.0,97691.0,0.23640456]
[1739590706137,0.00222366,97692.0,97691.0,0.23538104]
[1739590719186,0.00222366,97692.0,97691.0,0.08183604]
[1739590719909,0.00222366,97692.0,97691.0,0.23538104]
[1739590724699,0.01701907,97692.0,97691.0,0.23538104]
[1739590743002,0.01701907,97692.0,97691.0,0.00023604]
[1739590743182,0.01701907,97692.0,97691.0,0.15378104]
[1739590747427,0.00222366,97692.0,97691.0,0.15378104]
[1739590781337,0.00222366,97692.0,97691.0,0.00023604]
[1739590781338,0.23876666,97692.0,97691.0,0.00023604]
[1739590782160,0.23676666,97692.0,97691.0,0.00023604]
[1739590782987,0.25157767,97692.0,97691.0,0.00023604]
[1739590783187,0.25357767,97692.0,97691.0,0.00023604]
[1739590783358,0.25157767,97692.0,97691.0,0.00023604]
[1739590783753,0.25457767,97692.0,97691.0,0.00023604]
[1739590784568,0.25757767,97692.0,97691.0,0.00023604]
[1739590784868,0.23976666,97692.0,97691.0,0.00023604]
[1739590785187,0.24276666,97692.0,97691.0,0.00023604]
[1739590785605,0.23976666,97692.0,97691.0,0.00023604]
[1739590785953,0.24576666,97692.0,97691.0,0.00023604]
[1739590786226,0.23676666,97692.0,97691.0,0.00023604]
[1739590786384,0.23976666,97692.0,97691.0,0.00023604]
[1739590787507,0.24276666,97692.0,97691.0,0.00023604]
[1739590789052,0.29156666,97692.0,97691.0,0.00023604]
[1739590797091,0.15976666,97692.0,97691.0,0.00023604]
[1739590801761,0.00622366,97692.0,97691.0,0.00023604]
[1739590802353,0.00622366,97692.0,97691.0,0.15378104]
[1739590803643,0.00322366,97692.0,97691.0,0.15378104]
[1739590803787,0.00322366,97692.0,97691.0,0.15478104]
[1739590804202,0.00022366,97692.0,97691.0,0.15478104]
[1739590806455,0.00022366,97692.0,97691.0,0.15580452]
[1739590806778,0.00022366,97692.0,97691.0,0.15580456]
[1739590807350,0.00022366,97692.0,97691.0,0.28130821]
[1739590807556,0.00022366,97692.0,97691.0,0.28028469]
[1739590812198,0.00122366,97692.0,97691.0,0.28028469]
[1739590812398,0.00222366,97692.0,97691.0,0.28328469]
[1739590812953,0.00122366,97692.0,97691.0,0.28028469]
[1739590813332,0.00222366,97692.0,97691.0,0.28328469]
[1739590813710,0.00022366,97692.0,97691.0,0.61398469]
[1739590813913,0.00222366,97692.0,97691.0,0.89388469]
[1739590818569,0.00122366,97692.0,97691.0,0.89088469]
[1739590818995,0.00222366,97692.0,97691.0,0.89488469]
[1739590819674,0.00222366,97692.0,97691.0,1.44388469]
[1739590819863,0.00122366,97692.0,97691.0,1.44288469]
[1739590820065,0.00122366,97692.0,97691.0,1.44388469]
[1739590820266,0.00222366,97692.0,97691.0,1.44388469]
[1739590833668,0.00222366,97692.0,97691.0,1.45388469]
[1739590839404,0.00222366,97692.0,97691.0,1.48398055]
[1739590839656,6.6e-07,97692.0,97691.0,1.48398055]
[1739590840464,0.00022366,97712.0,97711.0,0.303513]
[1739590840664,0.00022366,97712.0,97711.0,0.73071665]
[1739590841680,0.00022366,97712.0,97711.0,0.75371665]
[1739590842087,0.00022366,97712.0,97711.0,0.75571665]
[1739590842893,0.00022366,97712.0,97711.0,0.75671665]
[1739590857412,0.00022366,97712.0,97711.0,0.84731665]
[1739590858185,0.00022366,97712.0,97711.0,0.84431665]
[1739590858410,0.00122366,97712.0,97711.0,0.86031665]
[1739590858624,0.00122366,97712.0,97711.0,0.94300309]
[1739590858775,0.00122366,97712.0,97711.0,0.93800309]
[1739590859156,0.00122366,97712.0,97711.0,0.94300309]
[1739590859734,0.00022366,97712.0,97711.0,0.93700309]
[1739590860035,0.00022366,97712.0,97711.0,0.94300309]
[1739590860468,0.00022366,97712.0,97711.0,0.93800309]
[1739590860645,0.00122366,97712.0,97711.0,0.93900309]
[1739590860780,0.00122366,97712.0,97711.0,0.94600309]
[1739590864133,0.00122366,97712.0,97711.0,1.49500309]
[1739590864558,0.00122366,97712.0,97711.0,1.46491665]
[1739590867428,0.00122366,97712.0,97711.0,1.38431665]
[1739590867640,0.00122366,97712.0,97711.0,1.33671665]
[1739590867772,0.00122366,97712.0,97711.0,1.32671665]
[1739590867978,0.00122366,97712.0,97711.0,1.29371665]
[1739590868399,0.00122366,97712.0,97711.0,1.14371665]
[1739590868598,0.00122366,97712.0,97711.0,1.29371665]
[1739590868804,0.00122366,97712.0,97711.0,1.31671665]
[1739590869658,0.00022366,97712.0,97711.0,1.30971665]
[1739590869977,0.00022366,97712.0,97711.0,1.30771665]
[1739590870131,0.00022366,97712.0,97711.0,0.76071665]
[1739590870475,0.00022366,97712.0,97711.0,0.76571665]
[1739590870677,0.00022366,97712.0,97711.0,0.75871665]
[1739590870880,0.00022366,97712.0,97711.0,0.76371665]
[1739590872873,0.00022366,97712.0,97711.0,0.75371665]
[1739590873106,0.00022366,97712.0,97711.0,0.75771665]
[1739590873284,0.00022366,97712.0,97711.0,0.76271665]
[1739590898843,0.00022366,97712.0,97711.0,0.77271665]
[1739590899190,0.00022366,97712.0,97711.0,0.85311665]
[1739590900234,0.00022366,97712.0,97711.0,0.84811665]
[1739590900409,0.00022366,97712.0,97711.0,0.84411665]
[1739590900610,0.00122366,97712.0,97711.0,0.85111665]
[1739590902104,0.00122366,97712.0,97711.0,0.85811665]
[1739590903934,0.00122366,97712.0,97711.0,5.46281665]
[1739590904132,0.00122366,97712.0,97711.0,5.70516614]
[1739590904502,0.00122366,97712.0,97711.0,5.72550274]
[1739590905225,0.00122366,97712.0,97711.0,1.61155325]
[1739590905431,0.00122366,97712.0,97711.0,1.28975325]
[1739590905758,0.00122366,97712.0,97711.0,1.83875325]
[1739590910974,0.00122366,97712.0,97711.0,1.86884492]
[1739590912695,0.00122366,97712.0,97711.0,1.83875325]
[1739590914560,0.00122366,97712.0,97711.0,1.51365525]
[1739590915041,0.00122366,97712.0,97711.0,6.22605525]
[1739590915519,0.00122366,97712.0,97711.0,6.16745525]
[1739590915727,0.00122366,97712.0,97711.0,5.91525525]
[1739590915944,0.00122366,97712.0,97711.0,5.89025525]
[1739590916201,0.00122366,97712.0,97711.0,5.92034338]
[1739590916727,0.00122366,97712.0,97711.0,5.32444338]
[1739590916961,0.00122366,97712.0,97711.0,5.29994338]
[1739590918828,0.00122366,97712.0,97711.0,5.28544338]
[1739590920149,0.00122366,97712.0,97711.0,4.67824338]
[1739590920281,0.00122366,97712.0,97711.0,3.70724338]
[1739590920696,0.00122366,97712.0,97711.0,3.61964338]
[1739590921321,0.00122366,97712.0,97711.0,1.53314338]
[1739590921521,0.00122366,97712.0,97711.0,1.51914338]
[1739590922141,0.00122366,97712.0,97711.0,1.48905525]
[1739590924258,0.00122366,97712.0,97711.0,1.47905525]
[1739590925115,0.00122366,97712.0,97711.0,1.37775525]
[1739590925289,0.00122366,97712.0,97711.0,1.36775525]
[1739590929479,0.00122366,97712.0,97711.0,0.81875525]
[1739590934921,0.00122366,97712.0,97711.0,0.82875525]
[1739590935134,0.00122366,97712.0,97711.0,0.79841865]
[1739590936854,0.00122366,97712.0,97711.0,0.80841865]
[1739590937055,0.00122366,97712.0,97711.0,0.79841865]
[1739590950667,0.00122366,97712.0,97711.0,0.79841865]
[1739590979294,0.00122366,97712.0,97711.0,0.79141865]
[1739590979728,0.00122366,97712.0,97711.0,0.79841865]
[1739590979905,0.00022366,97712.0,97711.0,0.79141865]
[1739590980332,0.00122366,97712.0,97711.0,0.79141865]
[1739590980532,0.00122366,97712.0,97711.0,0.78441865]
[1739590980888,0.00222366,97712.0,97711.0,0.79741865]
[1739590987093,0.00222366,97712.0,97711.0,0.76671665]
[1739591031410,0.00222366,97712.0,97711.0,0.3377]
[1739591031821,0.00684066,97712.0,97711.0,0.3377]
[1739591032028,0.16035266,97712.0,97711.0,0.3377]
[1739591032280,0.16035266,97712.0,97711.0,0.3307]
[1739591032489,0.00684066,97712.0,97711.0,0.3357]
[1739591032711,0.00484066,97712.0,97711.0,0.3297]
[1739591032847,0.00484066,97712.0,97711.0,0.3327]
[1739591033081,0.00484066,97712.0,97711.0,0.3277]
[1739591033300,0.15835266,97712.0,97711.0,0.3277]
[1739591033702,0.00484066,97712.0,97711.0,0.3277]
[1739591034247,0.15835266,97712.0,97711.0,0.3277]
[1739591034406,0.15835266,97712.0,97711.0,0.3327]
[1739591036671,0.15835266,97712.0,97711.0,0.008]
[1739591075976,0.00484066,97712.0,97711.0,0.008]
[1739591076179,0.15835266,97712.0,97711.0,0.008]
[1739591099737,0.15835266,97712.0,97711.0,0.003]
[1739591100103,0.15835266,97712.0,97711.0,0.006]
[1739591100439,0.15835266,97712.0,97711.0,0.003]
[1739591100678,0.24145266,97712.0,97711.0,0.003]
[1739591100842,0.23683566,97712.0,97711.0,0.003]
[1739591101310,0.23683566,97712.0,97711.0,0.005]
[1739591102044,0.23683566,97712.0,97711.0,0.002]
[1739591102245,0.23683566,97712.0,97711.0,0.005]
[1739591102448,0.28203566,97712.0,97711.0,0.005]
[1739591102617,0.28203566,97712.0,97711.0,0.002]
[1739591103027,0.153542,97693.0,97692.0,0.0001065]
[1739591104466,0.153542,97693.0,97692.0,0.0021065]
[1739591106014,0.153539,97695.0,97692.0,0.0021065]
[1739591106247,0.153539,97695.0,97692.0,0.0051065]
[1739591106415,0.0831,97700.0,97692.0,0.0051065]
[1739591106551,0.153541,97694.0,97692.0,0.0051065]
[1739591106752,0.153542,97693.0,97692.0,0.0051065]
[1739591106958,0.153542,97693.0,97692.0,0.0021065]
[1739591107203,0.153542,97693.0,97692.0,0.0031065]
[1739591107616,0.153542,97693.0,97692.0,0.0051065]
[1739591107791,0.153542,97693.0,97692.0,0.0001065]
[1739591109021,0.153542,97693.0,97692.0,0.0031065]
[1739591109221,0.153542,97693.0,97692.0,0.0051065]
[1739591121175,0.15376566,97693.0,97692.0,0.0051065]
[1739591134263,0.15376566,97693.0,97692.0,0.0021065]
[1739591134666,0.15376566,97693.0,97692.0,0.0031065]
[1739591135031,0.15376566,97693.0,97692.0,0.0021065]
[1739591135714,0.15376566,97693.0,97692.0,0.0001065]
[1739591135914,0.15376566,97693.0,97692.0,0.0011065]
[1739591141560,0.00022366,97693.0,97692.0,0.0011065]
[1739591141757,0.00022366,97693.0,97692.0,0.1546495]
[1739591142073,0.00022366,97693.0,97692.0,0.28015315]
[1739591144341,0.00022366,97693.0,97692.0,0.0011065]
[1739591149949,0.15376566,97693.0,97692.0,0.0011065]
[1739591153580,0.15476566,97693.0,97692.0,0.0011065]
[1739591153781,0.15476566,97693.0,97692.0,0.0001065]
[1739591159183,0.15376566,97693.0,97692.0,0.0001065]
[1739591160054,0.15476566,97693.0,97692.0,0.0001065]
[1739591178708,0.00122366,97693.0,97692.0,0.0001065]
[1739591179069,0.15476566,97693.0,97692.0,0.0001065]
[1739591179531,0.00122366,97693.0,97692.0,0.0001065]
[1739591179736,0.00122366,97693.0,97692.0,0.1536495]
[1739591180509,0.00122366,97693.0,97692.0,0.2750495]
[1739591193307,0.00122366,97693.0,97692.0,0.0452065]
[1739591194267,0.00122366,97693.0,97692.0,0.0001065]
[1739591194908,0.15476566,97693.0,97692.0,0.0001065]
[1739591195114,0.23496566,97693.0,97692.0,0.0001065]
[1739591196853,0.15476566,97693.0,97692.0,0.0001065]
[1739591197619,0.16954106,97693.0,97692.0,0.0001065]
[1739591203239,0.16954106,97693.0,97692.0,0.0001065]
[1739591214375,0.15476566,97693.0,97692.0,0.0001065]
[1739591220311,0.16954363,97693.0,97692.0,0.0001065]
[1739591226414,0.15476566,97693.0,97692.0,0.0001065]
[1739591233970,0.16956273,97693.0,97692.0,0.0001065]
[1739591237374,0.15476566,97693.0,97692.0,0.0001065]
[1739591240199,0.1695626,97693.0,97692.0,0.0001065]
[1739591248736,0.15476566,97693.0,97692.0,0.0001065]
[1739591278239,0.15376566,97693.0,97692.0,0.0001065]
[1739591278374,0.15676566,97693.0,97692.0,0.0001065]
[1739591282767,0.15476566,97693.0,97692.0,0.0001065]
[1739591283141,0.15676566,97693.0,97692.0,0.0001065]
[1739591283618,0.15576566,97693.0,97692.0,0.0001065]
[1739591283825,0.15876566,97693.0,97692.0,0.0001065]
[1739591284445,0.15676566,97693.0,97692.0,0.0001065]
[1739591284651,0.16176566,97693.0,97692.0,0.0001065]
[1739591297240,0.00822366,97693.0,97692.0,0.0001065]
[1739591298387,0.16176566,97693.0,97692.0,0.0001065]
[1739591298929,0.00822366,97693.0,97692.0,0.0001065]
[1739591299073,0.16176566,97693.0,97692.0,0.0001065]
[1739591317633,0.00822366,97693.0,97692.0,0.0001065]
[1739591320921,0.16176566,97693.0,97692.0,0.0001065]
[1739591321498,0.00822366,97693.0,97692.0,0.0001065]
[1739591333584,0.16176566,97693.0,97692.0,0.0001065]
[1739591348437,0.00822366,97693.0,97692.0,0.0001065]
[1739591349958,0.00822366,97693.0,97692.0,0.1536495]
[1739591351160,0.00822366,97693.0,97692.0,0.2837495]
[1739591352216,0.00322366,97693.0,97692.0,0.2837495]
[1739591352359,0.00522366,97693.0,97692.0,0.2837495]
[1739591352565,0.00222366,97693.0,97692.0,0.2837495]
[1739591362299,0.00222366,97693.0,97692.0,0.38625315]
[1739591363070,0.00222366,97693.0,97692.0,0.38725315]
[1739591363818,0.00022366,97693.0,97692.0,0.38725315]
[1739591387792,0.00022366,97693.0,97692.0,0.25715315]
[1739591430492,0.00022366,97693.0,97692.0,0.48655315]
[1739591430698,0.00022366,97693.0,97692.0,0.53455315]
[1739591430943,0.00022366,97693.0,97692.0,5.31599315]
[1739591431150,0.00022366,97693.0,97692.0,5.34613307]
[1739591431354,6.6e-07,97693.0,97692.0,5.19749307]
[1739591431558,6.6e-07,97693.0,97692.0,0.57878807]
[1739591431947,6.6e-07,97693.0,97692.0,0.59378807]
[1739591432109,6.6e-07,97693.0,97692.0,0.61678807]
[1739591432989,6.6e-07,97693.0,97692.0,0.61078807]
[1739591433165,6.6e-07,97693.0,97692.0,0.63176855]
[1739591433476,6.6e-07,97693.0,97692.0,0.64376855]
[1739591433676,6.6e-07,97693.0,97692.0,0.63876855]
[1739591433875,0.00100066,97693.0,97692.0,0.64576855]
[1739591434714,0.00100066,97693.0,97692.0,5.27266855]
[1739591435490,0.00100066,97693.0,97692.0,4.72836855]
[1739591437616,0.00100066,97693.0,97692.0,5.05306855]
[1739591438016,6.6e-07,97693.0,97692.0,5.05306855]
[1739591438189,6.6e-07,97693.0,97692.0,0.97046855]
[1739591438603,6.6e-07,97693.0,97692.0,0.94032863]
[1739591439633,6.6e-07,97693.0,97692.0,0.97038112]
[1739591441780,6.6e-07,97693.0,97692.0,0.94032863]
[1739591443091,0.00022432,97693.0,97692.0,0.94032863]
[1739591443300,0.00022432,97693.0,97692.0,3.11482863]
[1739591443503,0.00022432,97693.0,97692.0,2.80742863]
[1739591448466,3.2e-07,97693.0,97692.0,0.94032863]
[1739591450627,3.2e-07,97693.0,97692.0,0.97036168]
[1739591451781,3.2e-07,97693.0,97692.0,0.94032863]
[1739591451958,3.2e-07,97693.0,97692.0,0.97036421]
[1739591481889,3.2e-07,97693.0,97692.0,1.06167346]
[1739591488159,3.2e-07,97693.0,97692.0,0.98227346]
[1739591490901,3.2e-07,97693.0,97692.0,0.89096421]
[1739591496999,3.2e-07,97693.0,97692.0,0.98227346]
[1739591499778,3.2e-07,97693.0,97692.0,0.89096421]
[1739591500183,3.2e-07,97693.0,97692.0,0.84296421]
[1739591548928,3.2e-07,97693.0,97692.0,0.83296421]
[1739591549134,3.2e-07,97693.0,97692.0,0.84296421]
[1739591549288,3.2e-07,97693.0,97692.0,0.83296421]
[1739591549507,3.2e-07,97693.0,97692.0,0.84296421]
[1739591550284,3.2e-07,97693.0,97692.0,0.33526421]
[1739591550499,0.07740032,97693.0,97692.0,0.30018873]
[1739591550721,0.12560032,97693.0,97692.0,0.30018873]
[1739591550961,0.12560032,97693.0,97692.0,0.27015315]
[1739591551384,0.12560032,97693.0,97692.0,0.41315315]
[1739591551587,0.12660032,97693.0,97692.0,0.41315315]
[1739591552258,0.12660032,97693.0,97692.0,0.41115315]
[1739591552454,0.12660032,97693.0,97692.0,0.41815315]
[1739591556648,0.00100032,97693.0,97692.0,0.41815315]
[1739591557609,0.00100032,97693.0,97692.0,5.18959315]
[1739591562268,0.00100032,97693.0,97692.0,5.21259315]
[1739591562470,0.00100032,97693.0,97692.0,5.53729315]
[1739591564639,0.00100032,97693.0,97692.0,5.24165315]
[1739591564795,0.00100032,97693.0,97692.0,4.85775315]
[1739591573861,0.00100032,97693.0,97692.0,0.76585315]
[1739591574067,0.00100032,97693.0,97692.0,4.69125315]
[1739591574514,0.00100032,97693.0,97692.0,4.65975315]
[1739591574992,0.00100032,97693.0,97692.0,3.47725315]
[1739591575416,0.00100032,97693.0,97692.0,3.35215315]
[1739591576603,0.00100032,97693.0,97692.0,3.38223106]
[1739591576983,0.00100032,97693.0,97692.0,3.35215315]
[1739591577250,0.00100032,97693.0,97692.0,3.32535315]
[1739591577404,0.00100032,97693.0,97692.0,1.74475315]
[1739591577748,0.00100032,97693.0,97692.0,1.77483412]
[1739591578289,0.00100032,97693.0,97692.0,1.74475315]
[1739591578491,0.00100032,97693.0,97692.0,1.7748368]
[1739591579515,0.00100032,97693.0,97692.0,1.74475315]
[1739591579722,0.00100032,97693.0,97692.0,1.77484028]
[1739591579924,0.00100032,97693.0,97692.0,1.78212028]